[Event "*** SCC Grand Prix: Titled Tuesday Blitz"]
[Site "Chess.com"]
[Date "2020.07.21"]
[Round "4"]
[White "GGfrances"]
[Black "wild_cat99"]
[Result "1-0"]
[WhiteElo "2475"]
[BlackElo "2616"]
[TimeControl "180+1"]
[EndTime "10:40:22 PDT"]
[Termination "GGfrances won on time"]

1. e4 {[%clk 0:03:00.9]} 1... c5 {[%clk 0:02:59.9]} 2. Nf3 {[%clk 0:03:00]} 2...
d6 {[%clk 0:03:00.2]} 3. d4 {[%clk 0:02:59.8]} 3... cxd4 {[%clk 0:03:01.1]} 4.
Nxd4 {[%clk 0:03:00.4]} 4... Nf6 {[%clk 0:03:00.2]} 5. Nc3 {[%clk 0:03:01.1]}
5... a6 {[%clk 0:03:00.6]} 6. Bg5 {[%clk 0:03:00.3]} 6... Nbd7 {[%clk
0:03:00.8]} 7. Bc4 {[%clk 0:02:49.6]} 7... Qc7 {[%clk 0:03:00.3]} 8. Bb3 {[%clk
0:02:47.1]} 8... h6 {[%clk 0:02:57.5]} 9. Bh4 {[%clk 0:02:41.2]} 9... g5 {[%clk
0:02:57.3]} 10. Bg3 {[%clk 0:02:36.1]} 10... Nc5 {[%clk 0:02:57.6]} 11. f3
{[%clk 0:02:33.9]} 11... e6 {[%clk 0:02:54.7]} 12. Qe2 {[%clk 0:02:26.3]} 12...
Nxb3 {[%clk 0:02:36.6]} 13. Nxb3 {[%clk 0:02:23.5]} 13... b5 {[%clk 0:02:36.8]}
14. O-O-O {[%clk 0:02:16.7]} 14... b4 {[%clk 0:02:27.4]} 15. Nb1 {[%clk
0:02:11.5]} 15... Bb7 {[%clk 0:02:18.8]} 16. N1d2 {[%clk 0:02:06.5]} 16... Rc8
{[%clk 0:02:15.5]} 17. Qd3 {[%clk 0:01:55.5]} 17... h5 {[%clk 0:01:58.2]} 18.
Kb1 {[%clk 0:01:49.8]} 18... h4 {[%clk 0:01:54.5]} 19. Bf2 {[%clk 0:01:49.9]}
19... g4 {[%clk 0:01:35.9]} 20. Rhe1 {[%clk 0:01:45.7]} 20... Bg7 {[%clk
0:01:27.8]} 21. f4 {[%clk 0:01:38.7]} 21... h3 {[%clk 0:01:23.3]} 22. g3 {[%clk
0:01:36.4]} 22... O-O {[%clk 0:01:21.1]} 23. e5 {[%clk 0:01:33.9]} 23... Nd5
{[%clk 0:01:14.9]} 24. exd6 {[%clk 0:01:31]} 24... Qxd6 {[%clk 0:01:15.8]} 25.
Ne4 {[%clk 0:01:28.5]} 25... Qc7 {[%clk 0:01:16.1]} 26. Bd4 {[%clk 0:01:22.6]}
26... Rfd8 {[%clk 0:01:12.2]} 27. Bxg7 {[%clk 0:01:20]} 27... Nc3+ {[%clk
0:01:12.5]} 28. Bxc3 {[%clk 0:01:16.9]} 28... Rxd3 {[%clk 0:01:12.5]} 29. Nf6+
{[%clk 0:01:13.8]} 29... Kf8 {[%clk 0:01:10.5]} 30. Rxd3 {[%clk 0:01:14]} 30...
bxc3 {[%clk 0:01:09.4]} 31. Rxc3 {[%clk 0:01:11.8]} 31... Qd8 {[%clk 0:01:09.6]}
32. Rxc8 {[%clk 0:01:09.5]} 32... Qxc8 {[%clk 0:01:10.5]} 33. Nxg4 {[%clk
0:01:06.4]} 33... Qc6 {[%clk 0:01:10.6]} 34. Nd4 {[%clk 0:00:59.9]} 34... Qg2
{[%clk 0:01:08.9]} 35. Kc1 {[%clk 0:00:55.8]} 35... Bd5 {[%clk 0:01:04.2]} 36.
f5 {[%clk 0:00:50.6]} 36... Bxa2 {[%clk 0:00:52.4]} 37. b3 {[%clk 0:00:47.2]}
37... e5 {[%clk 0:00:45.2]} 38. Nxe5 {[%clk 0:00:44.7]} 38... Qxh2 {[%clk
0:00:44.5]} 39. Nef3 {[%clk 0:00:39.4]} 39... Qg2 {[%clk 0:00:39.5]} 40. Kb2
{[%clk 0:00:36.3]} 40... h2 {[%clk 0:00:39.3]} 41. Nxh2 {[%clk 0:00:33.4]} 41...
Qxh2 {[%clk 0:00:40.2]} 42. Kxa2 {[%clk 0:00:31.2]} 42... Qxg3 {[%clk
0:00:40.5]} 43. Rd1 {[%clk 0:00:26.6]} 43... Qc3 {[%clk 0:00:39.2]} 44. Rd3
{[%clk 0:00:24.4]} 44... Qc7 {[%clk 0:00:39.2]} 45. Kb2 {[%clk 0:00:21.3]} 45...
Qe5 {[%clk 0:00:35.8]} 46. Rd1 {[%clk 0:00:18.8]} 46... a5 {[%clk 0:00:34.4]}
47. Rd3 {[%clk 0:00:19]} 47... Qe4 {[%clk 0:00:29.3]} 48. Rd1 {[%clk 0:00:18.4]}
48... Kg7 {[%clk 0:00:28.2]} 49. Rd3 {[%clk 0:00:18.4]} 49... Kf6 {[%clk
0:00:27.7]} 50. Rd1 {[%clk 0:00:18.4]} 50... Qg2 {[%clk 0:00:24.6]} 51. Rd3
{[%clk 0:00:18.2]} 51... Qb7 {[%clk 0:00:24]} 52. Rd1 {[%clk 0:00:18]} 52... a4
{[%clk 0:00:23.8]} 53. Rd3 {[%clk 0:00:18.3]} 53... Ke5 {[%clk 0:00:18.8]} 54.
Ne2 {[%clk 0:00:15.7]} 54... Kxf5 {[%clk 0:00:17.5]} 55. Nd4+ {[%clk 0:00:12.8]}
55... Ke4 {[%clk 0:00:17.4]} 56. Ne2 {[%clk 0:00:12.8]} 56... f5 {[%clk
0:00:16]} 57. Nc3+ {[%clk 0:00:12.9]} 57... Ke5 {[%clk 0:00:15.8]} 58. Nxa4
{[%clk 0:00:13.1]} 58... f4 {[%clk 0:00:14.1]} 59. Nc5 {[%clk 0:00:12.2]} 59...
Qb4 {[%clk 0:00:13.8]} 60. Nd7+ {[%clk 0:00:10.8]} 60... Ke6 {[%clk 0:00:12.5]}
61. c3 {[%clk 0:00:09.2]} 61... Qb5 {[%clk 0:00:09.3]} 62. Rd4 {[%clk
0:00:09.3]} 62... f3 {[%clk 0:00:08.5]} 63. Nf8+ {[%clk 0:00:08.4]} 63... Ke7
{[%clk 0:00:06.8]} 64. Ng6+ {[%clk 0:00:08.5]} 64... Kf6 {[%clk 0:00:05.9]} 65.
Nf4 {[%clk 0:00:08.6]} 65... f2 {[%clk 0:00:05]} 66. Rd1 {[%clk 0:00:08.1]}
66... f1=Q {[%clk 0:00:04.6]} 67. Rxf1 {[%clk 0:00:08.4]} 67... Qxf1 {[%clk
0:00:05.5]} 68. Nd5+ {[%clk 0:00:08.4]} 68... Ke5 {[%clk 0:00:05.2]} 69. c4
{[%clk 0:00:09.3]} 69... Qf2+ {[%clk 0:00:03.9]} 70. Kc3 {[%clk 0:00:09.7]}
70... Qf3+ {[%clk 0:00:03.5]} 71. Kb4 {[%clk 0:00:10.1]} 71... Qd1 {[%clk
0:00:02.1]} 72. Kc3 {[%clk 0:00:09.5]} 72... Qc1+ {[%clk 0:00:01.6]} 73. Kb4
{[%clk 0:00:09.9]} 73... Qb2 {[%clk 0:00:01.7]} 74. Ka4 {[%clk 0:00:09.9]} 74...
Kd4 {[%clk 0:00:01.9]} 75. Kb4 {[%clk 0:00:10]} 75... Qa2 {[%clk 0:00:02]} 76.
Nc3 {[%clk 0:00:09.5]} 76... Qb2 {[%clk 0:00:01.8]} 77. Nb5+ {[%clk 0:00:08.7]}
77... Kd3 {[%clk 0:00:01.3]} 78. Nd6 {[%clk 0:00:07.6]} 78... Kc2 {[%clk
0:00:01.2]} 79. Nb5 {[%clk 0:00:06.7]} 79... Qxb3+ {[%clk 0:00:01.2]} 80. Kc5
{[%clk 0:00:07.6]} 1-0

[Event "*** SCC Grand Prix: Titled Tuesday Blitz"]
[Site "Chess.com"]
[Date "2020.07.21"]
[Round "4"]
[White "LawrenceTrent"]
[Black "ShimanovAlex"]
[Result "1/2-1/2"]
[WhiteElo "2542"]
[BlackElo "2802"]
[TimeControl "180+1"]
[EndTime "10:40:27 PDT"]
[Termination "Game drawn - insufficient material"]

1. e4 {[%clk 0:03:00.9]} 1... d5 {[%clk 0:02:59.7]} 2. exd5 {[%clk 0:03:01]}
2... Qxd5 {[%clk 0:03:00.6]} 3. Nc3 {[%clk 0:03:01.1]} 3... Qa5 {[%clk
0:03:00.8]} 4. Bc4 {[%clk 0:02:58.9]} 4... Nf6 {[%clk 0:03:00.3]} 5. d3 {[%clk
0:02:59.2]} 5... c6 {[%clk 0:02:59.9]} 6. Qe2 {[%clk 0:02:59.1]} 6... Bg4 {[%clk
0:02:57.7]} 7. f3 {[%clk 0:02:59.1]} 7... Bd7 {[%clk 0:02:55.3]} 8. f4 {[%clk
0:02:57.5]} 8... Bg4 {[%clk 0:02:44.7]} 9. Nf3 {[%clk 0:02:56.9]} 9... e6 {[%clk
0:02:45.1]} 10. O-O {[%clk 0:02:53.1]} 10... Nbd7 {[%clk 0:02:43.2]} 11. h3
{[%clk 0:02:50.6]} 11... Bxf3 {[%clk 0:02:41.7]} 12. Qxf3 {[%clk 0:02:49.2]}
12... g6 {[%clk 0:02:42.2]} 13. Bd2 {[%clk 0:02:44.3]} 13... Qb6+ {[%clk
0:02:31.5]} 14. Kh1 {[%clk 0:02:42.8]} 14... Bg7 {[%clk 0:02:31.5]} 15. g4
{[%clk 0:02:30.2]} 15... h5 {[%clk 0:02:27.8]} 16. g5 {[%clk 0:02:15.8]} 16...
Nd5 {[%clk 0:02:25.6]} 17. Ne4 {[%clk 0:02:15.2]} 17... Qc7 {[%clk 0:02:21.1]}
18. c3 {[%clk 0:02:12]} 18... Ne7 {[%clk 0:02:14.3]} 19. a4 {[%clk 0:02:07.7]}
19... O-O {[%clk 0:02:11.5]} 20. d4 {[%clk 0:02:03.1]} 20... Nf5 {[%clk
0:02:10.8]} 21. a5 {[%clk 0:01:56.1]} 21... c5 {[%clk 0:02:10]} 22. d5 {[%clk
0:01:55.4]} 22... b5 {[%clk 0:02:02.6]} 23. dxe6 {[%clk 0:01:33.1]} 23... bxc4
{[%clk 0:02:02.2]} 24. exd7 {[%clk 0:01:33.4]} 24... Qxd7 {[%clk 0:02:02.1]} 25.
Rad1 {[%clk 0:01:29.6]} 25... Rab8 {[%clk 0:01:51.3]} 26. Bc1 {[%clk 0:01:28.2]}
26... Qb7 {[%clk 0:01:50.9]} 27. Kh2 {[%clk 0:01:23.6]} 27... Qc7 {[%clk
0:01:39.7]} 28. Rd5 {[%clk 0:01:21]} 28... Ne7 {[%clk 0:01:16.5]} 29. Rxc5
{[%clk 0:01:16.7]} 29... Qd8 {[%clk 0:01:13.4]} 30. Rd1 {[%clk 0:01:15.4]} 30...
Qe8 {[%clk 0:01:10.2]} 31. Nf6+ {[%clk 0:01:10]} 31... Bxf6 {[%clk 0:01:09.8]}
32. gxf6 {[%clk 0:01:10.9]} 32... Nc8 {[%clk 0:01:07.3]} 33. Rxh5 {[%clk
0:01:07.8]} 33... Qe6 {[%clk 0:01:05.1]} 34. Rg5 {[%clk 0:00:51.5]} 34... Nd6
{[%clk 0:00:59.8]} 35. Qd5 {[%clk 0:00:46.2]} 35... Qxd5 {[%clk 0:00:55.3]} 36.
Rgxd5 {[%clk 0:00:45.3]} 36... Ne4 {[%clk 0:00:55.3]} 37. R1d4 {[%clk
0:00:43.6]} 37... Nxf6 {[%clk 0:00:54.3]} 38. Re5 {[%clk 0:00:34.8]} 38... Rfc8
{[%clk 0:00:49.2]} 39. f5 {[%clk 0:00:35.1]} 39... gxf5 {[%clk 0:00:37.8]} 40.
Rxf5 {[%clk 0:00:35.1]} 40... Rc6 {[%clk 0:00:38.4]} 41. Rdf4 {[%clk 0:00:30.5]}
41... Kg7 {[%clk 0:00:36.1]} 42. Rf2 {[%clk 0:00:30.5]} 42... Rb7 {[%clk
0:00:34.3]} 43. Be3 {[%clk 0:00:27]} 43... Ne8 {[%clk 0:00:31.7]} 44. Bd4+
{[%clk 0:00:27.1]} 44... f6 {[%clk 0:00:31.9]} 45. Rg2+ {[%clk 0:00:26.4]} 45...
Kf7 {[%clk 0:00:31.7]} 46. Rh5 {[%clk 0:00:26.7]} 46... Nd6 {[%clk 0:00:28.6]}
47. Rh7+ {[%clk 0:00:26.1]} 47... Ke6 {[%clk 0:00:28.8]} 48. Rxb7 {[%clk
0:00:26.7]} 48... Nxb7 {[%clk 0:00:28.4]} 49. Bxa7 {[%clk 0:00:24.4]} 49... Nxa5
{[%clk 0:00:28.1]} 50. h4 {[%clk 0:00:23.3]} 50... Nb3 {[%clk 0:00:26.6]} 51. h5
{[%clk 0:00:23.1]} 51... Rc7 {[%clk 0:00:26.6]} 52. Be3 {[%clk 0:00:22.2]} 52...
Rh7 {[%clk 0:00:25.8]} 53. h6 {[%clk 0:00:21.2]} 53... Na5 {[%clk 0:00:25.3]}
54. Kh3 {[%clk 0:00:18.9]} 54... Nc6 {[%clk 0:00:25.2]} 55. Kh4 {[%clk
0:00:18.4]} 55... Ne5 {[%clk 0:00:21.9]} 56. Kh5 {[%clk 0:00:18.3]} 56... Rd7
{[%clk 0:00:20.3]} 57. Bd4 {[%clk 0:00:18]} 57... Nf3 {[%clk 0:00:19]} 58. Rf2
{[%clk 0:00:15.6]} 58... Nxd4 {[%clk 0:00:11.1]} 59. cxd4 {[%clk 0:00:16.5]}
59... Rd5+ {[%clk 0:00:10.8]} 60. Kg6 {[%clk 0:00:13.6]} 60... Rg5+ {[%clk
0:00:11.3]} 61. Kh7 {[%clk 0:00:14.1]} 61... f5 {[%clk 0:00:10.7]} 62. Rf4
{[%clk 0:00:08.3]} 62... Kf6 {[%clk 0:00:08.6]} 63. d5 {[%clk 0:00:07.6]} 63...
Ke5 {[%clk 0:00:08.8]} 64. Rxc4 {[%clk 0:00:08]} 64... Kxd5 {[%clk 0:00:09.3]}
65. Rc2 {[%clk 0:00:08.3]} 65... f4 {[%clk 0:00:08.6]} 66. b4 {[%clk 0:00:08.7]}
66... Ke4 {[%clk 0:00:08.8]} 67. Rc3 {[%clk 0:00:06.4]} 67... f3 {[%clk
0:00:08.5]} 68. Rc4+ {[%clk 0:00:06.6]} 68... Ke3 {[%clk 0:00:08.4]} 69. Rc3+
{[%clk 0:00:06.2]} 69... Ke2 {[%clk 0:00:08.6]} 70. Rc2+ {[%clk 0:00:06.8]}
70... Kd3 {[%clk 0:00:08.5]} 71. Ra2 {[%clk 0:00:07]} 71... Ke3 {[%clk
0:00:08.1]} 72. Ra3+ {[%clk 0:00:07.4]} 72... Ke2 {[%clk 0:00:08]} 73. Ra2+
{[%clk 0:00:07.7]} 73... Kf1 {[%clk 0:00:08.2]} 74. Ra1+ {[%clk 0:00:07.7]}
74... Kg2 {[%clk 0:00:07.7]} 75. b5 {[%clk 0:00:07.6]} 75... Rxb5 {[%clk
0:00:06.5]} 76. Kg7 {[%clk 0:00:08]} 76... Rb7+ {[%clk 0:00:06.4]} 77. Kg6
{[%clk 0:00:08]} 77... Rb6+ {[%clk 0:00:06.5]} 78. Kg7 {[%clk 0:00:08.5]} 78...
Rb7+ {[%clk 0:00:06.6]} 79. Kg6 {[%clk 0:00:08.9]} 79... f2 {[%clk 0:00:05.8]}
80. h7 {[%clk 0:00:08.9]} 80... Rxh7 {[%clk 0:00:05.5]} 81. Kxh7 {[%clk
0:00:08.8]} 81... f1=Q {[%clk 0:00:06.4]} 82. Rxf1 {[%clk 0:00:08.9]} 82... Kxf1
{[%clk 0:00:07.3]} 1/2-1/2

[Event "*** SCC Grand Prix: Titled Tuesday Blitz"]
[Site "Chess.com"]
[Date "2020.07.21"]
[Round "4"]
[White "Maksat-94"]
[Black "fabianvivasz"]
[Result "1/2-1/2"]
[WhiteElo "2442"]
[BlackElo "2294"]
[TimeControl "180+1"]
[EndTime "10:40:33 PDT"]
[Termination "Game drawn by repetition"]

1. e4 {[%clk 0:03:00.9]} 1... e5 {[%clk 0:02:58.4]} 2. Nf3 {[%clk 0:03:00.3]}
2... Nc6 {[%clk 0:02:58.8]} 3. Bc4 {[%clk 0:03:00.8]} 3... Nf6 {[%clk
0:02:58.3]} 4. O-O {[%clk 0:02:57.9]} 4... Nxe4 {[%clk 0:02:56.8]} 5. d4 {[%clk
0:02:57.4]} 5... d5 {[%clk 0:02:56.5]} 6. Bb5 {[%clk 0:02:31.6]} 6... exd4
{[%clk 0:02:55.9]} 7. Nxd4 {[%clk 0:02:31.3]} 7... Bd7 {[%clk 0:02:55.2]} 8.
Bxc6 {[%clk 0:02:27.4]} 8... bxc6 {[%clk 0:02:56.1]} 9. f3 {[%clk 0:02:27.8]}
9... Nc5 {[%clk 0:02:52]} 10. Re1+ {[%clk 0:02:27.1]} 10... Ne6 {[%clk 0:02:52]}
11. Kh1 {[%clk 0:02:24.1]} 11... Qf6 {[%clk 0:02:02.1]} 12. Nc3 {[%clk
0:02:22.2]} 12... Bd6 {[%clk 0:01:56.1]} 13. Be3 {[%clk 0:02:18.2]} 13... O-O
{[%clk 0:01:53.2]} 14. Qd2 {[%clk 0:02:10.4]} 14... Nxd4 {[%clk 0:01:05]} 15.
Bxd4 {[%clk 0:02:03.7]} 15... Qh4 {[%clk 0:01:02.8]} 16. Be5 {[%clk 0:02:02.8]}
16... Rfe8 {[%clk 0:00:57.6]} 17. Bxd6 {[%clk 0:01:59]} 17... cxd6 {[%clk
0:00:58.5]} 18. b3 {[%clk 0:01:57.7]} 18... Qf6 {[%clk 0:00:55.2]} 19. Rxe8+
{[%clk 0:01:55.9]} 19... Rxe8 {[%clk 0:00:53.7]} 20. Re1 {[%clk 0:01:56.2]}
20... Rxe1+ {[%clk 0:00:52.7]} 21. Qxe1 {[%clk 0:01:55.8]} 21... Qe5 {[%clk
0:00:52.9]} 22. Qd2 {[%clk 0:01:50]} 22... d4 {[%clk 0:00:49]} 23. Ne2 {[%clk
0:01:36.7]} 23... c5 {[%clk 0:00:39.2]} 24. Kg1 {[%clk 0:01:36.5]} 24... Bb5
{[%clk 0:00:16.6]} 25. Ng3 {[%clk 0:01:26.5]} 25... h5 {[%clk 0:00:10.1]} 26.
Ne4 {[%clk 0:01:12.2]} 26... g6 {[%clk 0:00:09.4]} 27. h4 {[%clk 0:01:03.3]}
27... Kg7 {[%clk 0:00:09.3]} 28. Qg5 {[%clk 0:00:59.3]} 28... Bc6 {[%clk
0:00:08.9]} 29. Qxe5+ {[%clk 0:00:58]} 29... dxe5 {[%clk 0:00:09]} 30. Nxc5
{[%clk 0:00:58.5]} 30... Kf6 {[%clk 0:00:09.1]} 31. Kf2 {[%clk 0:00:58.4]} 31...
Ke7 {[%clk 0:00:09.4]} 32. Nd3 {[%clk 0:00:50.7]} 32... Kd6 {[%clk 0:00:09.4]}
33. Ke1 {[%clk 0:00:46.8]} 33... f6 {[%clk 0:00:07.9]} 34. Kd2 {[%clk
0:00:46.4]} 34... g5 {[%clk 0:00:07.5]} 35. hxg5 {[%clk 0:00:38.9]} 35... fxg5
{[%clk 0:00:08.4]} 36. c3 {[%clk 0:00:39.2]} 36... dxc3+ {[%clk 0:00:08.2]} 37.
Kxc3 {[%clk 0:00:38.8]} 37... e4 {[%clk 0:00:08.8]} 38. fxe4 {[%clk 0:00:36.7]}
38... Bxe4 {[%clk 0:00:09.7]} 39. g3 {[%clk 0:00:33.5]} 39... Bxd3 {[%clk
0:00:09.1]} 40. Kxd3 {[%clk 0:00:33.4]} 40... Kd5 {[%clk 0:00:08.8]} 41. Ke3
{[%clk 0:00:31.1]} 41... Ke5 {[%clk 0:00:08.3]} 42. a3 {[%clk 0:00:29.6]} 42...
a6 {[%clk 0:00:06.3]} 43. Kd3 {[%clk 0:00:26]} 43... Kd5 {[%clk 0:00:06.5]} 44.
Ke3 {[%clk 0:00:25.2]} 44... Ke5 {[%clk 0:00:03]} 45. Kd3 {[%clk 0:00:24.8]}
45... Kf5 {[%clk 0:00:02.7]} 46. Ke3 {[%clk 0:00:24.4]} 46... Kg4 {[%clk
0:00:02.9]} 47. Kf2 {[%clk 0:00:24.1]} 47... h4 {[%clk 0:00:03.1]} 48. gxh4
{[%clk 0:00:23.8]} 48... Kxh4 {[%clk 0:00:02.8]} 49. b4 {[%clk 0:00:23.6]} 49...
Kg4 {[%clk 0:00:03.4]} 50. a4 {[%clk 0:00:23.2]} 50... Kf4 {[%clk 0:00:04]} 51.
b5 {[%clk 0:00:23.1]} 51... axb5 {[%clk 0:00:04.4]} 52. a5 {[%clk 0:00:21.3]}
52... b4 {[%clk 0:00:05]} 53. a6 {[%clk 0:00:21.1]} 53... b3 {[%clk 0:00:05.6]}
54. a7 {[%clk 0:00:18.7]} 54... b2 {[%clk 0:00:06.5]} 55. a8=Q {[%clk
0:00:17.7]} 55... b1=Q {[%clk 0:00:06.8]} 56. Qf3+ {[%clk 0:00:18]} 56... Ke5
{[%clk 0:00:06.7]} 57. Qe3+ {[%clk 0:00:17.9]} 57... Kf6 {[%clk 0:00:07]} 58.
Qd4+ {[%clk 0:00:17.4]} 58... Kg6 {[%clk 0:00:07.2]} 59. Qd6+ {[%clk 0:00:17.1]}
59... Kh5 {[%clk 0:00:07]} 60. Qh2+ {[%clk 0:00:16.7]} 60... Kg6 {[%clk
0:00:07.3]} 61. Qd6+ {[%clk 0:00:16.1]} 61... Kg7 {[%clk 0:00:07.5]} 62. Qe7+
{[%clk 0:00:15.6]} 62... Kg6 {[%clk 0:00:07.5]} 63. Qe6+ {[%clk 0:00:15.5]}
63... Kh5 {[%clk 0:00:07.1]} 64. Qh3+ {[%clk 0:00:14.9]} 64... Kg6 {[%clk
0:00:06.8]} 65. Qe6+ {[%clk 0:00:14.6]} 65... Kh7 {[%clk 0:00:07]} 66. Qf7+
{[%clk 0:00:14.3]} 66... Kh6 {[%clk 0:00:07.5]} 67. Qf8+ {[%clk 0:00:14.3]}
67... Kh5 {[%clk 0:00:07.4]} 68. Qh8+ {[%clk 0:00:14]} 68... Kg4 {[%clk
0:00:07.6]} 69. Qc8+ {[%clk 0:00:14.1]} 69... Qf5+ {[%clk 0:00:07.4]} 70. Qxf5+
{[%clk 0:00:13.4]} 70... Kxf5 {[%clk 0:00:08.3]} 71. Kf3 {[%clk 0:00:13.8]}
71... Kf6 {[%clk 0:00:08.8]} 72. Kg4 {[%clk 0:00:13.5]} 72... Kg6 {[%clk
0:00:09.4]} 73. Kg3 {[%clk 0:00:13.7]} 73... Kh5 {[%clk 0:00:10.1]} 74. Kh3
{[%clk 0:00:13.5]} 74... g4+ {[%clk 0:00:11]} 75. Kg3 {[%clk 0:00:13.7]} 75...
Kg5 {[%clk 0:00:11.9]} 76. Kg2 {[%clk 0:00:14]} 76... Kf4 {[%clk 0:00:12.6]} 77.
Kf2 {[%clk 0:00:13.5]} 77... Ke4 {[%clk 0:00:13.3]} 78. Kg3 {[%clk 0:00:13.3]}
78... Kf5 {[%clk 0:00:14]} 79. Kg2 {[%clk 0:00:13.7]} 79... Kf4 {[%clk
0:00:14.6]} 80. Kf2 {[%clk 0:00:13.6]} 80... Kg5 {[%clk 0:00:15.2]} 81. Kg3
{[%clk 0:00:13.5]} 81... Kf5 {[%clk 0:00:15.3]} 82. Kg2 {[%clk 0:00:13.9]} 82...
Kf4 {[%clk 0:00:15.9]} 1/2-1/2

[Event "*** SCC Grand Prix: Titled Tuesday Blitz"]
[Site "Chess.com"]
[Date "2020.07.21"]
[Round "4"]
[White "NiranjanNavalgund"]
[Black "Carnivoras"]
[Result "1/2-1/2"]
[WhiteElo "2459"]
[BlackElo "2613"]
[TimeControl "180+1"]
[EndTime "10:40:40 PDT"]
[Termination "Game drawn by repetition"]

1. d4 {[%clk 0:03:00.9]} 1... d5 {[%clk 0:03:00.2]} 2. c4 {[%clk 0:03:01.3]}
2... c6 {[%clk 0:03:00.6]} 3. Nf3 {[%clk 0:03:01.9]} 3... e6 {[%clk 0:03:00.7]}
4. g3 {[%clk 0:03:00.9]} 4... dxc4 {[%clk 0:03:00.3]} 5. Bg2 {[%clk 0:03:01.2]}
5... b5 {[%clk 0:03:01]} 6. O-O {[%clk 0:03:01.2]} 6... Bb7 {[%clk 0:03:01.6]}
7. a4 {[%clk 0:03:01.3]} 7... a6 {[%clk 0:03:01.9]} 8. b3 {[%clk 0:02:55.1]}
8... cxb3 {[%clk 0:03:02.8]} 9. Qxb3 {[%clk 0:02:55.6]} 9... Nf6 {[%clk
0:03:02.7]} 10. Bg5 {[%clk 0:02:55.4]} 10... Be7 {[%clk 0:03:02.5]} 11. Nc3
{[%clk 0:02:55.5]} 11... O-O {[%clk 0:03:02.3]} 12. Rfd1 {[%clk 0:02:53.6]}
12... Nbd7 {[%clk 0:03:01.5]} 13. Ne5 {[%clk 0:02:53.6]} 13... Nd5 {[%clk
0:02:58.5]} 14. Bxe7 {[%clk 0:02:52]} 14... Qxe7 {[%clk 0:02:58.7]} 15. Nxd7
{[%clk 0:02:51]} 15... Qxd7 {[%clk 0:02:59]} 16. Ne4 {[%clk 0:02:51.4]} 16...
Qe7 {[%clk 0:02:53.4]} 17. Nc5 {[%clk 0:02:51.5]} 17... h6 {[%clk 0:02:39.4]}
18. e4 {[%clk 0:02:45.4]} 18... Nb6 {[%clk 0:02:38.6]} 19. axb5 {[%clk
0:02:43.6]} 19... cxb5 {[%clk 0:02:34.9]} 20. Rac1 {[%clk 0:02:41]} 20... Rfc8
{[%clk 0:02:23.6]} 21. Rc2 {[%clk 0:02:28.2]} 21... Bc6 {[%clk 0:02:13.8]} 22.
Rdc1 {[%clk 0:02:22.8]} 22... Nc4 {[%clk 0:02:05.6]} 23. Nd3 {[%clk 0:02:17.2]}
23... Rd8 {[%clk 0:02:02.3]} 24. Nb4 {[%clk 0:02:16.5]} 24... Bb7 {[%clk
0:02:01]} 25. d5 {[%clk 0:02:16.8]} 25... exd5 {[%clk 0:01:59.8]} 26. exd5
{[%clk 0:02:17.7]} 26... Qd6 {[%clk 0:01:54.3]} 27. Nc6 {[%clk 0:02:16.3]} 27...
Re8 {[%clk 0:01:49.6]} 28. Rxc4 {[%clk 0:02:14.3]} 28... bxc4 {[%clk 0:01:44.2]}
29. Qxb7 {[%clk 0:02:14.2]} 29... Qa3 {[%clk 0:01:40.7]} 30. Qb1 {[%clk
0:02:09.2]} 30... Re2 {[%clk 0:01:10.8]} 31. Bf1 {[%clk 0:02:06.6]} 31... Rb2
{[%clk 0:01:08]} 32. Qe4 {[%clk 0:02:06.1]} 32... Rxf2 {[%clk 0:00:50.9]} 33.
Rxc4 {[%clk 0:01:53.9]} 33... Rf6 {[%clk 0:00:47.5]} 34. Ne7+ {[%clk 0:01:52.3]}
34... Kf8 {[%clk 0:00:39.9]} 35. d6 {[%clk 0:01:45.9]} 35... Rd8 {[%clk
0:00:37.2]} 36. Nf5 {[%clk 0:01:40.7]} 36... Re6 {[%clk 0:00:31.9]} 37. Qd4
{[%clk 0:01:35.3]} 37... Rf6 {[%clk 0:00:25.9]} 38. Bd3 {[%clk 0:01:24.3]} 38...
Kg8 {[%clk 0:00:20.9]} 39. d7 {[%clk 0:01:18.2]} 39... Qa5 {[%clk 0:00:13.7]}
40. Rc8 {[%clk 0:01:11.9]} 40... Qe1+ {[%clk 0:00:04.8]} 41. Kg2 {[%clk
0:01:11.4]} 41... Qd2+ {[%clk 0:00:05.3]} 42. Kh3 {[%clk 0:01:09.7]} 42... Qa5
{[%clk 0:00:05.6]} 43. Qe4 {[%clk 0:00:54]} 43... Re6 {[%clk 0:00:04.9]} 44. Qd4
{[%clk 0:00:40.9]} 44... Rf6 {[%clk 0:00:04.7]} 45. Qg4 {[%clk 0:00:39.8]} 45...
g6 {[%clk 0:00:04.2]} 46. Ne3 {[%clk 0:00:33.1]} 46... Kg7 {[%clk 0:00:04.3]}
47. Nd5 {[%clk 0:00:28.7]} 47... Qxd5 {[%clk 0:00:04]} 48. Rxd8 {[%clk
0:00:28.5]} 48... Qxd3 {[%clk 0:00:04.4]} 49. Qb4 {[%clk 0:00:16.5]} 49... Qf5+
{[%clk 0:00:04.2]} 50. Qg4 {[%clk 0:00:15.8]} 50... Qf1+ {[%clk 0:00:03.3]} 51.
Kh4 {[%clk 0:00:16.2]} 51... h5 {[%clk 0:00:03.8]} 52. Rg8+ {[%clk 0:00:14.9]}
52... Kxg8 {[%clk 0:00:04.3]} 53. d8=Q+ {[%clk 0:00:15]} 53... Kg7 {[%clk
0:00:05.2]} 54. Qh3 {[%clk 0:00:14.2]} 54... g5+ {[%clk 0:00:04.3]} 55. Kxg5
{[%clk 0:00:13.8]} 55... Qc1+ {[%clk 0:00:03.7]} 56. Kh4 {[%clk 0:00:12.9]}
56... Qc4+ {[%clk 0:00:03.8]} 57. g4 {[%clk 0:00:12.7]} 57... Rg6 {[%clk
0:00:03.1]} 58. Qd7 {[%clk 0:00:08.9]} 58... hxg4 {[%clk 0:00:02.6]} 59. Qg3
{[%clk 0:00:07.6]} 59... Rh6+ {[%clk 0:00:02.9]} 60. Kg5 {[%clk 0:00:07.7]}
60... Qc5+ {[%clk 0:00:03.3]} 61. Kf4 {[%clk 0:00:07.7]} 61... Rf6+ {[%clk
0:00:03.7]} 62. Ke4 {[%clk 0:00:07.6]} 62... Qb4+ {[%clk 0:00:04.2]} 63. Qd4
{[%clk 0:00:07.4]} 63... Qe7+ {[%clk 0:00:03.1]} 64. Kd3 {[%clk 0:00:07.2]}
64... Qa3+ {[%clk 0:00:03.3]} 65. Qc3 {[%clk 0:00:07.2]} 65... Qa4 {[%clk
0:00:02.5]} 66. Qf2 {[%clk 0:00:05.5]} 66... Qd1+ {[%clk 0:00:02.7]} 67. Kc4
{[%clk 0:00:04.8]} 67... Qd6 {[%clk 0:00:03.1]} 68. Qfxf6+ {[%clk 0:00:04.4]}
68... Qxf6 {[%clk 0:00:03.3]} 69. Qg3 {[%clk 0:00:04.9]} 69... Qc6+ {[%clk
0:00:03.3]} 70. Kb4 {[%clk 0:00:04.7]} 70... Qf3 {[%clk 0:00:04.2]} 71. Qe5+
{[%clk 0:00:04.3]} 71... Qf6 {[%clk 0:00:04.4]} 72. Qh5 {[%clk 0:00:04.2]} 72...
Qg6 {[%clk 0:00:04.3]} 73. Qe5+ {[%clk 0:00:04.1]} 73... Qf6 {[%clk 0:00:05.2]}
74. Qh5 {[%clk 0:00:04.2]} 74... Qg6 {[%clk 0:00:05.8]} 75. Qe5+ {[%clk
0:00:04.4]} 75... Kg8 {[%clk 0:00:06.7]} 76. Qe8+ {[%clk 0:00:04.5]} 76... Kh7
{[%clk 0:00:07.6]} 77. Qe5 {[%clk 0:00:05.2]} 77... Qg7 {[%clk 0:00:07.6]} 78.
Qh5+ {[%clk 0:00:05.3]} 78... Kg8 {[%clk 0:00:08.3]} 79. Qd5 {[%clk 0:00:05.2]}
79... Qb2+ {[%clk 0:00:08.7]} 80. Ka4 {[%clk 0:00:04.2]} 80... Qxh2 {[%clk
0:00:09.6]} 81. Qd8+ {[%clk 0:00:04.2]} 81... Kh7 {[%clk 0:00:10.2]} 82. Qg5
{[%clk 0:00:05.1]} 82... Qh3 {[%clk 0:00:09.8]} 83. Qf5+ {[%clk 0:00:05.3]}
83... Kg7 {[%clk 0:00:10.7]} 84. Qg5+ {[%clk 0:00:05.8]} 84... Kf8 {[%clk
0:00:10.9]} 85. Qd8+ {[%clk 0:00:06.3]} 85... Kg7 {[%clk 0:00:11.8]} 86. Qg5+
{[%clk 0:00:07.1]} 86... Kh7 {[%clk 0:00:12.4]} 87. Qf5+ {[%clk 0:00:07.7]}
87... Kg8 {[%clk 0:00:12.9]} 88. Qg5+ {[%clk 0:00:08.1]} 88... Kf8 {[%clk
0:00:13.8]} 89. Qd8+ {[%clk 0:00:08.6]} 89... Kg7 {[%clk 0:00:14.4]} 90. Qg5+
{[%clk 0:00:09.2]} 1/2-1/2